fUSD/lending_fUSD_20251119
["ID","MTS","AMOUNT","RATE_DAILY","PERIOD"]
[394388744,1763517844434,195.0,0.00020237,120]
[394388745,1763517845063,300.0,0.00022261,120]
[394388746,1763517845164,300.0,0.00020237,120]
[394388747,1763517845277,166.27987457,0.00028872,120]
[394388782,1763518231901,-195.12518251,0.00020237,2]
[394388783,1763518231910,-250.0,0.00020237,2]
[394388784,1763518231920,-167.7,0.00020237,2]
[394388785,1763518231931,-253.25270493,0.00022261,2]
[394388787,1763518231943,-177.61729866,0.00022261,2]
[394388789,1763518231953,-194.22209532,0.00022261,2]
[394388791,1763518231962,-195.0,0.00022261,2]
[394388793,1763518231972,-250.0,0.00022261,2]
[394388794,1763518231981,-198.4408187,0.00030256,2]
[394388795,1763518231990,-167.7,0.00030356,2]
[394388796,1763518232001,-153.90397681,0.00036716,76]
[394388797,1763518232010,-1200.0,0.00036814,3]
[394388798,1763518232020,-386.0,0.00036815,3]
[394388799,1763518232030,-1600.0,0.00036815,3]
[394388800,1763518232040,-195.12518251,0.00036815,2]
[394388801,1763518232058,-363.990628,0.00036816,30]
[394388802,1763518232072,-136.009372,0.00036816,30]
[394388803,1763518232081,-500.0,0.00036816,30]
[394388804,1763518232090,-500.0,0.00036816,30]
[394388805,1763518232099,-500.0,0.00036816,30]
[394388806,1763518232108,-171.00824966,0.00036816,30]
[394388807,1763518232119,-328.99175034,0.00036816,30]
[394388808,1763518232128,-28.31185323,0.00036816,30]
[394388809,1763518232144,-327.7799999,0.00036816,30]
[394388810,1763518232155,-143.90814687,0.00036816,30]
[394388811,1763518232165,-500.0,0.00036816,30]
[394388812,1763518232175,-441.2194081,0.00036816,30]
[394388813,1763518232188,-58.7805919,0.00036816,30]
[394388814,1763518232198,-479.58345571,0.00038372,2]
[394388815,1763518232210,-434.57723662,0.00038372,2]
[394388816,1763518232222,-250.83930767,0.00038372,2]
[394388818,1763518232232,-185.76080505,0.00038372,2]
[394388820,1763518232245,-171.54919495,0.00038372,2]
[394388822,1763518232254,-168.11772189,0.00039076,120]
[394388824,1763518232266,-6.36150098,0.00039076,120]
[394388825,1763518232278,-156.57,0.00039076,120]
[394388826,1763518232289,-156.57,0.00039176,120]
[394388827,1763518232300,-709.39189094,0.00039223,2]
[394388832,1763518237928,-263.60810906,0.00039223,2]
[394388833,1763518237937,-1000.0,0.0003933,2]
[394388834,1763518237946,-800.0,0.00039552,5]
[394388835,1763518237955,-275.55745211,0.00039585,2]
[394388836,1763518237981,-697.44254789,0.00039585,2]
[394388837,1763518237990,-973.0,0.000396,7]
[394388838,1763518237999,-1852.42,0.00039783,2]
[394388839,1763518238008,-468.68,0.00039833,2]
[394388840,1763518238017,-266.29,0.00039883,30]
[394388841,1763518238026,-4227.95,0.00039921,2]
[394388842,1763518238036,-1270.61,0.00039979,120]
[394388843,1763518238045,-973.0,0.00040123,120]
[394388844,1763518238055,-150.0,0.00040158,2]
[394388845,1763518238068,-973.0,0.00040203,7]
[394388846,1763518238078,-973.0,0.00040273,120]
[394388847,1763518238088,-5000.0,0.00040346,120]
[394388848,1763518238098,-167.7,0.00040475,2]
[394388849,1763518238109,-2751.0,0.00040475,120]
[394388850,1763518238119,-304.13394786,0.00040561,2]
[394388851,1763518238128,-341.096,0.00040561,58]
[394388852,1763518238138,-814.895,0.00040561,58]
[394388853,1763518238148,-200.0,0.00040625,2]
[394388854,1763518238157,-902.86,0.00040672,120]
[394388855,1763518238167,-973.0,0.00040676,120]
[394388856,1763518238176,-343.91,0.0004078,30]
[394388857,1763518238186,-197.40270417,0.00040924,2]
[394388858,1763518238196,-150.0,0.0004103,2]
[394388860,1763518238205,-198.44081869,0.00041191,2]
[394388862,1763518238214,-1318.0,0.00041291,2]
[394388864,1763518238223,-3433.0,0.00041291,2]
[394388866,1763518238233,-575.0,0.00041291,2]
[394388868,1763518238242,-1607.63,0.00041291,2]
[394388870,1763518238251,-821.0,0.00041291,2]
[394388872,1763518238264,-1283.016,0.00041291,2]
[394388874,1763518238273,-797.957,0.00041291,2]
[394388877,1763518238283,-1605.0,0.00041291,2]
[394388879,1763518238292,-6492.0,0.00041291,2]
[394388881,1763518238302,-705.0,0.00041291,2]
[394388883,1763518238311,-973.0,0.00041302,2]
[394388885,1763518238322,-197.40270417,0.0004132,3]
[394388887,1763518238331,-300.0,0.00041394,2]
[394388889,1763518238340,-1000.0,0.000414,2]
[394388891,1763518238350,-973.0,0.00041443,7]
[394388893,1763518238359,-251.8106614,0.00041517,14]
[394388895,1763518238368,-1000.0,0.00041543,14]
[394388897,1763518238377,-1000.0,0.00041568,14]
[394388899,1763518238386,-150.0,0.00041598,30]
[394388901,1763518238397,-213.234,0.00041598,30]
[394388903,1763518238406,-153.90397681,0.00041604,88]
[394388905,1763518238415,-2500.0,0.00041607,2]
[394388907,1763518238424,-1000.0,0.00041607,2]
[394388909,1763518238433,-1000.0,0.00041638,14]
[394388910,1763518238443,-1000.0,0.00041656,14]
[394388913,1763518238452,-1000.0,0.00041674,14]
[394388915,1763518238464,-1000.0,0.00041683,90]
[394388917,1763518238473,-1000.0,0.00041683,90]
[394388918,1763518238482,-1000.0,0.00041683,90]
[394388919,1763518238492,-1000.0,0.00041683,90]
[394388920,1763518238501,-1000.0,0.00041684,90]
[394388921,1763518238510,-1000.0,0.00041685,30]
[394388922,1763518238519,-44494.7758847,0.00041697,4]
[394388923,1763518238528,-197.55493054,0.000417,120]
[394388924,1763518238537,-1061.31262329,0.00041703,31]
[394388925,1763518238546,-500.0,0.00041703,2]
[394388926,1763518238556,-500.0,0.00041703,31]
[394388927,1763518238565,-153.63997531,0.00041703,31]
[394388928,1763518238577,-1061.31262329,0.00041703,31]
[394388929,1763518238586,-500.0,0.00041703,31]
[394388930,1763518238597,-1061.31262329,0.00041703,31]
[394388931,1763518238606,-500.0,0.00041703,31]
[394388932,1763518238615,-500.0,0.00041703,2]
[394388933,1763518238625,-1061.31262329,0.00041703,31]
[394388934,1763518238634,-500.0,0.00041703,31]
[394388935,1763518238643,-500.0,0.00041703,2]
[394388936,1763518238656,-500.0,0.00041703,31]
[394388937,1763518238666,-1061.31262329,0.00041703,31]
[394388938,1763518238676,-1061.31262329,0.00041703,31]
[394388939,1763518238685,-346.64872438,0.00041703,31]
[394388940,1763518238695,-500.0,0.00041703,2]
[394388941,1763518238704,-500.0,0.00041703,31]
[394388942,1763518238713,-1061.31262329,0.00041703,31]
[394388943,1763518238725,-1061.31262329,0.00041703,31]
[394388944,1763518238735,-500.0,0.00041703,31]
[394388945,1763518238744,-640.45503915,0.00041703,2]
[394388946,1763518238753,-1061.31262329,0.00041703,31]
[394388947,1763518238763,-1061.31262329,0.00041703,31]
[394388948,1763518238772,-1061.31262329,0.00041703,31]
[394388949,1763518238782,-500.0,0.00041703,31]
[394388950,1763518238791,-1061.31262329,0.00041703,31]
[394388951,1763518238801,-1061.31262329,0.00041703,31]
[394388952,1763518238810,-1061.31262329,0.00041703,31]
[394388953,1763518238821,-500.0,0.00041703,31]
[394388954,1763518238831,-1061.31262329,0.00041703,31]
[394388955,1763518238840,-1061.31262329,0.00041703,31]
[394388956,1763518238849,-1061.31262329,0.00041703,31]
[394388957,1763518238870,-1061.31262329,0.00041703,31]
[394388958,1763518238881,-1061.31262329,0.00041703,31]
[394388959,1763518238890,-1061.31262329,0.00041703,31]
[394388960,1763518238900,-1061.31262329,0.00041703,31]
[394388961,1763518238909,-1061.31262329,0.00041703,31]
[394388962,1763518238919,-1061.31262329,0.00041703,31]
[394388963,1763518238928,-1061.31262329,0.00041703,31]
[394388964,1763518238938,-1061.31262329,0.00041703,31]
[394388965,1763518238948,-1061.31262329,0.00041703,31]
[394388966,1763518238958,-1061.31262329,0.00041703,31]
[394388967,1763518238968,-1061.31262329,0.00041703,31]
[394388968,1763518238977,-1061.31262329,0.00041703,31]
[394388969,1763518238987,-1061.31262329,0.00041703,31]
[394388970,1763518238997,-1061.31262329,0.00041703,31]
[394388971,1763518239006,-1061.31262329,0.00041703,31]
[394388972,1763518239016,-1061.31262329,0.00041703,31]
[394388973,1763518239024,-1061.31262329,0.00041703,31]
[394388974,1763518239034,-1061.31262329,0.00041703,31]
[394388975,1763518239043,-1061.31262329,0.00041703,31]
[394388976,1763518239052,-1061.31262329,0.00041703,31]
[394388977,1763518239061,-1061.31262329,0.00041703,31]
[394388978,1763518239072,-1061.31262329,0.00041703,31]
[394388979,1763518239082,-1061.31262329,0.00041703,31]
[394388980,1763518239091,-1061.31262329,0.00041703,31]
[394388981,1763518239101,-1061.31262329,0.00041703,31]
[394388982,1763518239111,-1061.31262329,0.00041703,31]
[394388983,1763518239120,-1061.31262329,0.00041703,31]
[394388984,1763518239129,-1061.31262329,0.00041703,31]
[394388985,1763518239139,-1061.31262329,0.00041703,31]
[394388986,1763518239149,-1061.31262329,0.00041703,31]
[394388987,1763518239159,-1061.31262329,0.00041703,31]
[394388988,1763518239169,-1061.31262329,0.00041703,31]
[394388989,1763518239179,-1061.31262329,0.00041703,31]
[394388990,1763518239188,-1061.31262329,0.00041703,31]
[394388991,1763518239198,-1061.31262329,0.00041703,31]
[394388992,1763518239207,-1061.31262329,0.00041703,31]
[394388993,1763518239217,-1061.31262329,0.00041703,31]
[394388994,1763518239226,-1061.31262329,0.00041703,31]
[394388995,1763518239235,-1061.31262329,0.00041703,31]
[394388996,1763518239245,-1061.31262329,0.00041703,31]
[394388997,1763518239254,-1061.31262329,0.00041703,31]
[394388998,1763518239264,-1061.31262329,0.00041703,31]
[394388999,1763518239274,-1061.31262329,0.00041703,31]
[394389000,1763518239497,-1061.31262329,0.00041703,31]
[394389001,1763518239508,-1061.31262329,0.00041703,31]
[394389002,1763518239518,-468.63867997,0.00041705,30]
[394389003,1763518239527,-500.0,0.00041706,7]
[394389004,1763518239536,-500.0,0.00041706,7]
[394389005,1763518239546,-3675.21,0.00041706,2]
[394389006,1763518239556,-500.0,0.00041706,2]
[394389007,1763518239566,-300.0,0.00041706,2]
[394389008,1763518239575,-621.56,0.00041706,2]
[394389009,1763518239585,-500.0,0.00041706,2]
[394389010,1763518239594,-500.0,0.00041706,2]
[394389011,1763518239604,-185394.89952,0.00041706,4]
[394389012,1763518239614,-25880.4990591,0.00041706,4]
[394389013,1763518239623,-150.53,0.00041706,2]
[394389014,1763518239632,-500.0,0.00041715,31]
[394389015,1763518239642,-224.4838957,0.00041715,31]
[394389016,1763518239652,-218.72140333,0.00041715,31]
[394389017,1763518239664,-768.1107,0.00041716,120]
[394389018,1763518239673,-197.40270417,0.00041716,4]
[394389019,1763518239682,-520.78152215,0.00041716,7]
[394389020,1763518239691,-500.0,0.00041716,2]
[394389021,1763518239700,-500.0,0.00041716,2]
[394389022,1763518239710,-500.0,0.00041716,2]
[394389023,1763518239719,-811.4217681,0.00041716,120]
[394389024,1763518239728,-338.37086488,0.00041716,2]
[394389025,1763518239739,-1687.0,0.00041716,7]
[394389026,1763518239748,-760000.0,0.00041716,2]
[394389027,1763518239757,-1232.4047171,0.00041751,4]
[394389028,1763518239766,-1000.0,0.00041755,14]
[394389029,1763518239776,-1000.0,0.00041761,14]
[394389030,1763518239785,-1232.4047171,0.00041784,4]
[394389031,1763518239794,-171.07504743,0.00041796,2]
[394389032,1763518239803,-150.0,0.000418,60]
[394389033,1763518239812,-1273.255428,0.00041805,120]
[394389034,1763518239821,-200.0,0.00041805,120]
[394389035,1763518239831,-201.09822811,0.00041808,30]
[394389036,1763518239838,-786.0,0.00041808,120]
[394389037,1763518239848,-202.22687553,0.00041808,30]
[394389038,1763518239857,-202.77010523,0.00041808,30]
[394389039,1763518239866,-212.37401104,0.00041808,30]
[394389040,1763518239875,-150.0,0.00041808,30]
[394389042,1763518239884,-150.0,0.00041808,30]
[394389043,1763518239893,-201.45395189,0.00041808,30]
[394389044,1763518239906,-205.10985574,0.00041808,30]
[394389045,1763518239916,-500.0,0.00041808,30]
[394389046,1763518239925,-150.0,0.00041808,30]
[394389047,1763518239934,-500.0,0.00041808,30]
[394389048,1763518239944,-150.0,0.00041808,2]
[394389049,1763518239953,-500.0,0.00041808,30]
[394389050,1763518239962,-159.33028222,0.00041808,30]
[394389051,1763518239971,-500.0,0.00041808,30]
[394389052,1763518239980,-435.0,0.00041808,30]
[394389053,1763518239990,-150.0,0.00041808,2]
[394389054,1763518239999,-150.0,0.00041808,30]
[394389055,1763518240008,-150.0,0.00041808,2]
[394389056,1763518240017,-500.0,0.00041808,30]
[394389057,1763518240027,-500.0,0.00041808,30]
[394389058,1763518240036,-500.0,0.00041808,30]
[394389059,1763518240045,-500.0,0.00041808,2]
[394389060,1763518240054,-994.0,0.00041808,30]
[394389061,1763518240064,-500.0,0.00041808,30]
[394389062,1763518240075,-1401.66,0.00041808,30]
[394389063,1763518240084,-490.54,0.00041808,30]
[394389064,1763518240093,-700.83,0.00041808,30]
[394389065,1763518240102,-478.61,0.00041808,30]
[394389066,1763518240112,-700.83,0.00041808,30]
[394389067,1763518240121,-478.61,0.00041808,30]
[394389068,1763518240130,-700.83,0.00041808,30]
[394389069,1763518240139,-700.83,0.00041808,30]
[394389070,1763518240148,-478.61,0.00041808,30]
[394389071,1763518240156,-1244.21,0.00041808,30]
[394389072,1763518240165,-177.45,0.00041808,30]
[394389073,1763518240175,-150.0,0.00041808,30]
[394389074,1763518240184,-169.55,0.00041808,30]
[394389075,1763518240194,-150.0,0.00041808,30]
[394389076,1763518240203,-177.45,0.00041808,30]
[394389077,1763518240212,-169.55,0.00041808,30]
[394389078,1763518240221,-150.0,0.00041808,30]
[394389079,1763518240230,-169.55,0.00041808,30]
[394389080,1763518240239,-177.03,0.00041808,30]
[394389081,1763518240248,-500.0,0.00041813,2]
[394389082,1763518240257,-114512.633512,0.00041814,2]
[394389083,1763518240267,-3046.8796889,0.00041814,2]
[394389084,1763518240276,-114703.7558902,0.00041814,2]
[394389085,1763518240285,-3220.9345243,0.00041814,2]
[394389086,1763518240298,-183.58502316,0.00041815,2]
[394389087,1763518240307,-500.0,0.00041815,30]
[394389088,1763518240316,-500.0,0.00041815,14]
[394389089,1763518240326,-500.0,0.00041815,30]
[394389090,1763518240335,-1085.16504,0.00041815,11]
[394389091,1763518240344,-293.38389324,0.00041815,2]
[394389092,1763518240355,-538.51652493,0.00041815,31]
[394389093,1763518240364,-1061.31262329,0.00041815,31]
[394389094,1763518240373,-1061.31262329,0.00041815,31]
[394389095,1763518240382,-1061.31262329,0.00041815,31]
[394389096,1763518240391,-1061.31262329,0.00041815,31]
[394389097,1763518240401,-1061.31262329,0.00041815,31]
[394389098,1763518240412,-1061.31262329,0.00041815,31]
[394389099,1763518240422,-1061.31262329,0.00041815,31]
[394389100,1763518240431,-1061.31262329,0.00041815,31]
[394389101,1763518240440,-500.0,0.00041815,31]
[394389102,1763518240449,-476.80922461,0.00041815,31]
[394389103,1763518240459,-523.79575662,0.00041815,31]
[394389104,1763518240468,-350.13314628,0.00041815,15]
[394389105,1763518240477,-500.0,0.00041815,31]
[394389106,1763518240486,-500.0,0.00041815,31]
[394389107,1763518240497,-177.01660777,0.00041815,31]
[394389108,1763518240507,-9798.82676921,0.00041816,27]
[394389109,1763518240515,-200.0,0.00041816,7]
[394389110,1763518240524,-200.0,0.00041816,7]
[394389111,1763518240534,-151.0,0.00041816,120]
[394389112,1763518240543,-237.228624,0.00041816,120]
[394389113,1763518240552,-151.0,0.00041816,120]
[394389114,1763518240562,-151.0,0.00041816,120]
[394389115,1763518240573,-151.0,0.00041816,120]
[394389116,1763518240582,-151.0,0.00041816,120]
[394389117,1763518240592,-151.0,0.00041816,120]
[394389118,1763518240602,-151.0,0.00041816,120]
[394389119,1763518240611,-151.0,0.00041816,120]
[394389120,1763518240620,-151.0,0.00041816,120]
[394389121,1763518240630,-151.0,0.00041816,120]
[394389122,1763518240639,-151.0,0.00041816,120]
[394389123,1763518240648,-151.0,0.00041816,120]
[394389124,1763518240659,-151.0,0.00041816,120]
[394389125,1763518240669,-151.0,0.00041816,120]
[394389126,1763518240679,-151.0,0.00041816,120]
[394389127,1763518240692,-151.0,0.00041816,120]
[394389128,1763518240703,-291.427223,0.00041816,120]
[394389129,1763518240712,-200.38387,0.00041816,120]
[394389130,1763518240722,-200.38387,0.00041816,120]
[394389131,1763518240732,-200.38387,0.00041816,120]
[394389132,1763518240742,-200.38387,0.00041816,120]
[394389133,1763518240751,-200.38387,0.00041816,120]
[394389134,1763518240760,-200.38387,0.00041816,120]
[394389135,1763518240769,-200.38387,0.00041816,120]
[394389136,1763518240779,-200.38387,0.00041816,120]
[394389137,1763518240788,-200.38387,0.00041816,120]
[394389138,1763518240797,-200.38387,0.00041816,120]
[394389139,1763518240806,-200.38387,0.00041816,120]
[394389140,1763518240815,-200.38387,0.00041816,120]
[394389141,1763518240825,-200.38387,0.00041816,120]
[394389142,1763518240834,-200.38387,0.00041816,120]
[394389143,1763518240843,-200.38387,0.00041816,120]
[394389144,1763518240852,-200.38387,0.00041816,120]
[394389145,1763518240861,-200.38387,0.00041816,120]
[394389146,1763518240870,-200.38387,0.00041816,120]
[394389147,1763518240880,-200.38387,0.00041816,120]
[394389148,1763518240889,-200.383865,0.00041816,120]
[394389149,1763518240898,-159.23093,0.00041816,120]
[394389150,1763518240907,-159.23093,0.00041816,120]
[394389151,1763518240916,-159.23093,0.00041816,120]
[394389152,1763518240925,-159.23093,0.00041816,120]
[394389153,1763518240934,-159.23093,0.00041816,120]
[394389154,1763518240943,-159.23093,0.00041816,120]
[394389155,1763518240952,-151.0,0.00041816,120]
[394389156,1763518240961,-159.23093,0.00041816,120]
[394389157,1763518240970,-151.0,0.00041816,120]
[394389158,1763518240980,-186.708297,0.00041816,120]
[394389159,1763518240989,-159.23093,0.00041816,120]
[394389160,1763518240998,-159.23093,0.00041816,120]
[394389161,1763518241007,-159.23093,0.00041816,120]
[394389162,1763518241017,-159.23093,0.00041816,120]
[394389163,1763518241026,-159.23093,0.00041816,120]
[394389164,1763518241036,-159.23093,0.00041816,120]
[394389165,1763518241044,-159.23093,0.00041816,120]
[394389166,1763518241054,-159.23093,0.00041816,120]
[394389167,1763518241063,-159.23093,0.00041816,120]
[394389168,1763518241076,-159.23093,0.00041816,120]
[394389169,1763518241085,-159.23093,0.00041816,120]
[394389170,1763518241094,-159.23093,0.00041816,120]
[394389171,1763518241102,-159.23094,0.00041816,120]
[394389172,1763518241110,-898.37457,0.00041816,120]
[394389173,1763518241119,-898.37457,0.00041816,120]
[394389174,1763518241128,-898.37457,0.00041816,120]
[394389175,1763518241138,-898.37457,0.00041816,120]
[394389176,1763518241146,-898.37457,0.00041816,120]
[394389177,1763518241155,-898.37457,0.00041816,120]
[394389178,1763518241165,-898.37457,0.00041816,120]
[394389179,1763518241174,-898.37457,0.00041816,120]
[394389180,1763518241183,-898.37457,0.00041816,120]
[394389181,1763518241192,-898.37457,0.00041816,120]
[394389182,1763518241201,-898.37457,0.00041816,120]
[394389183,1763518241210,-898.37457,0.00041816,120]
[394389184,1763518241219,-898.37457,0.00041816,120]
[394389185,1763518241228,-898.37457,0.00041816,120]
[394389186,1763518241237,-898.37457,0.00041816,120]
[394389187,1763518241246,-898.37457,0.00041816,120]
[394389188,1763518241256,-898.37457,0.00041816,120]
[394389189,1763518241265,-898.37457,0.00041816,120]
[394389190,1763518241274,-898.37457,0.00041816,120]
[394389191,1763518241283,-898.374579,0.00041816,120]
[394389192,1763518241292,-151.0,0.00041816,120]
[394389193,1763518241300,-151.0,0.00041816,120]
[394389194,1763518241311,-151.0,0.00041816,120]
[394389195,1763518241322,-160.524456,0.00041816,120]
[394389196,1763518241332,-151.0,0.00041816,120]
[394389197,1763518241341,-151.0,0.00041816,120]
[394389198,1763518241350,-151.0,0.00041816,120]
[394389199,1763518241359,-151.0,0.00041816,120]
[394389200,1763518241369,-151.0,0.00041816,120]
[394389201,1763518241377,-151.0,0.00041816,120]
[394389202,1763518241386,-151.0,0.00041816,120]
[394389203,1763518241395,-158.918337,0.00041816,120]
[394389204,1763518241404,-154.897335,0.00041816,120]
[394389205,1763518241413,-151.0,0.00041816,120]
[394389206,1763518241422,-151.0,0.00041816,120]
[394389207,1763518241431,-159.230608,0.00041816,120]
[394389208,1763518241440,-151.0,0.00041816,120]
[394389209,1763518241448,-151.0,0.00041816,120]
[394389210,1763518241457,-151.0,0.00041816,120]
[394389211,1763518241466,-151.0,0.00041816,120]
[394389212,1763518241475,-151.0,0.00041816,120]
[394389213,1763518241484,-151.0,0.00041816,120]
[394389214,1763518241493,-151.0,0.00041816,120]
[394389215,1763518241502,-151.0,0.00041816,120]
[394389216,1763518241511,-151.0,0.00041816,120]
[394389217,1763518241519,-151.0,0.00041816,120]
[394389218,1763518241529,-151.0,0.00041816,120]
[394389219,1763518241537,-151.0,0.00041816,120]
[394389220,1763518241546,-151.0,0.00041816,120]
[394389221,1763518241555,-151.0,0.00041816,120]
[394389222,1763518241564,-151.0,0.00041816,120]
[394389223,1763518241573,-151.0,0.00041816,120]
[394389224,1763518241582,-151.0,0.00041816,120]
[394389225,1763518241591,-151.0,0.00041816,120]
[394389226,1763518241600,-151.0,0.00041816,120]
[394389227,1763518241609,-151.0,0.00041816,120]
[394389228,1763518241618,-200.0,0.00041816,7]
[394389229,1763518241627,-151.0,0.00041816,120]
[394389230,1763518241636,-151.0,0.00041816,120]
[394389231,1763518241644,-151.0,0.00041816,120]
[394389232,1763518241659,-151.0,0.00041816,120]
[394389233,1763518241667,-151.0,0.00041816,120]
[394389234,1763518241676,-151.0,0.00041816,120]
[394389235,1763518241685,-151.0,0.00041816,120]
[394389236,1763518241694,-151.0,0.00041816,120]
[394389237,1763518241700,-151.0,0.00041816,120]
[394389238,1763518241707,-151.0,0.00041816,120]
[394389239,1763518241713,-151.0,0.00041816,120]
[394389240,1763518241719,-182.717014,0.00041816,120]
[394389241,1763518241729,-151.0,0.00041816,120]
[394389242,1763518241738,-151.0,0.00041816,120]
[394389243,1763518241747,-151.0,0.00041816,120]
[394389244,1763518241756,-151.0,0.00041816,120]
[394389245,1763518241765,-151.0,0.00041816,120]
[394389246,1763518241774,-151.0,0.00041816,120]
[394389247,1763518241783,-151.0,0.00041816,120]
[394389248,1763518241793,-151.0,0.00041816,120]
[394389249,1763518241802,-151.0,0.00041816,120]
[394389250,1763518241811,-151.0,0.00041816,120]
[394389251,1763518241821,-237.273305,0.00041816,120]
[394389252,1763518241830,-151.0,0.00041816,120]
[394389253,1763518241839,-151.0,0.00041816,120]
[394389254,1763518241848,-163.500584,0.00041816,120]
[394389255,1763518241857,-151.0,0.00041816,14]
[394389256,1763518241866,-151.0,0.00041816,14]
[394389257,1763518241876,-151.0,0.00041816,120]
[394389258,1763518241885,-151.0,0.00041816,120]
[394389259,1763518241894,-156.46601,0.00041816,120]
[394389260,1763518241903,-151.0,0.00041816,120]
[394389261,1763518241912,-151.0,0.00041816,120]
[394389262,1763518241921,-151.0,0.00041816,120]
[394389263,1763518241930,-151.0,0.00041816,120]
[394389264,1763518241939,-151.0,0.00041816,120]
[394389265,1763518241948,-151.0,0.00041816,120]
[394389266,1763518241957,-164.319033,0.00041816,120]
[394389267,1763518241966,-151.0,0.00041816,120]
[394389268,1763518241975,-151.0,0.00041816,120]
[394389269,1763518241983,-151.0,0.00041816,120]
[394389270,1763518241992,-156.937698,0.00041816,120]
[394389271,1763518242001,-151.0,0.00041816,120]
[394389272,1763518242010,-297.924645,0.00041816,120]
[394389273,1763518242019,-151.0,0.00041816,120]
[394389274,1763518242028,-160.36581,0.00041816,120]
[394389275,1763518242037,-151.0,0.00041816,120]
[394389276,1763518242046,-191.681252,0.00041816,120]
[394389277,1763518242055,-151.0,0.00041816,120]
[394389278,1763518242064,-157.31533,0.00041816,120]
[394389279,1763518242075,-151.0,0.00041816,120]
[394389280,1763518242084,-151.0,0.00041816,120]
[394389281,1763518242093,-151.0,0.00041816,120]
[394389282,1763518242102,-151.0,0.00041816,120]
[394389283,1763518242112,-151.0,0.00041816,120]
[394389284,1763518242121,-230.7546344,0.00041816,120]
[394389285,1763518242130,-151.0,0.00041816,120]
[394389286,1763518242140,-151.0,0.00041816,120]
[394389287,1763518242149,-151.0,0.00041816,120]
[394389288,1763518242158,-151.0,0.00041816,120]
[394389289,1763518242168,-151.0,0.00041816,120]
[394389290,1763518242177,-151.0,0.00041816,120]
[394389291,1763518242186,-151.0,0.00041816,120]
[394389292,1763518242195,-151.0,0.00041816,120]
[394389293,1763518242205,-151.0,0.00041816,120]
[394389294,1763518242214,-151.0,0.00041816,120]
[394389295,1763518242223,-151.0,0.00041816,120]
[394389296,1763518242233,-151.0,0.00041816,120]
[394389297,1763518242242,-151.0,0.00041816,120]
[394389298,1763518242251,-151.0,0.00041816,120]
[394389299,1763518242260,-151.0,0.00041816,120]
[394389300,1763518242269,-151.0,0.00041816,120]
[394389301,1763518242278,-151.0,0.00041816,120]
[394389302,1763518242287,-179.083557,0.00041816,120]
[394389303,1763518242297,-151.0,0.00041816,120]
[394389304,1763518242306,-151.0,0.00041816,120]
[394389305,1763518242315,-151.0,0.00041816,120]
[394389306,1763518242327,-180.789459,0.00041816,120]
[394389307,1763518242336,-298.44475063,0.00041816,120]
[394389308,1763518242346,-151.0,0.00041816,120]
[394389309,1763518242355,-151.0,0.00041816,120]
[394389310,1763518242364,-151.0,0.00041816,120]
[394389311,1763518242374,-151.0,0.00041816,120]
[394389312,1763518242383,-151.0,0.00041816,120]
[394389313,1763518242392,-151.0,0.00041816,120]
[394389314,1763518242400,-151.0,0.00041816,120]
[394389315,1763518242410,-194.485825,0.00041816,120]
[394389316,1763518242419,-151.0,0.00041816,120]
[394389317,1763518242427,-151.0,0.00041816,120]
[394389318,1763518242437,-168.214243,0.00041816,120]
[394389319,1763518242446,-263.285936,0.00041816,120]
[394389320,1763518242456,-151.0,0.00041816,120]